[Event "Late-Titled-Tuesday-Blitz-June-18-2024"]
[Site "Chess.com"]
[Date "2024.06.18"]
[Round "1"]
[White "Cuchulin"]
[Black "Chigorinetz"]
[Result "0-1"]
[WhiteElo "2259"]
[BlackElo "2611"]
[TimeControl "180+1"]
[EndTime "14:07:10 PDT"]
[Termination "Chigorinetz won on time"]

1. d4 {[%clk 0:03:00.4]} 1... d5 {[%clk 0:02:58.6]} 2. Bf4 {[%clk 0:03:00.3]}
2... Bg4 {[%clk 0:02:57.7]} 3. h3 {[%clk 0:02:58.6]} 3... Bh5 {[%clk 0:02:57.1]}
4. Nf3 {[%clk 0:02:58.5]} 4... Nc6 {[%clk 0:02:56.3]} 5. e3 {[%clk 0:02:55.4]}
5... e6 {[%clk 0:02:56.5]} 6. Be2 {[%clk 0:02:55.5]} 6... Bd6 {[%clk 0:02:56.5]}
7. Ne5 {[%clk 0:02:55.5]} 7... Bxe2 {[%clk 0:02:55.4]} 8. Qxe2 {[%clk
0:02:56.4]} 8... Nge7 {[%clk 0:02:52.3]} 9. Nd2 {[%clk 0:02:52.5]} 9... O-O
{[%clk 0:02:51]} 10. O-O {[%clk 0:02:52]} 10... Bxe5 {[%clk 0:02:45.7]} 11. Bxe5
{[%clk 0:02:45]} 11... Nxe5 {[%clk 0:02:45]} 12. dxe5 {[%clk 0:02:45.1]} 12...
c5 {[%clk 0:02:45.9]} 13. c4 {[%clk 0:02:42.3]} 13... Qc7 {[%clk 0:02:44]} 14.
f4 {[%clk 0:02:41.3]} 14... Rad8 {[%clk 0:02:42]} 15. Rfd1 {[%clk 0:02:40.1]}
15... b5 {[%clk 0:02:40.6]} 16. b3 {[%clk 0:02:33.2]} 16... bxc4 {[%clk
0:02:31.5]} 17. bxc4 {[%clk 0:02:32.7]} 17... d4 {[%clk 0:02:28.5]} 18. exd4
{[%clk 0:02:25.3]} 18... Rxd4 {[%clk 0:02:20.8]} 19. Ne4 {[%clk 0:02:24.9]}
19... Rfd8 {[%clk 0:02:17.1]} 20. Rxd4 {[%clk 0:02:15.7]} 20... Rxd4 {[%clk
0:02:18]} 21. Rd1 {[%clk 0:02:14.6]} 21... Nf5 {[%clk 0:02:09.5]} 22. Rxd4
{[%clk 0:01:51.4]} 22... Nxd4 {[%clk 0:02:10.4]} 23. Qb2 {[%clk 0:01:41]} 23...
h6 {[%clk 0:02:10.1]} 24. Nd6 {[%clk 0:01:40.6]} 24... Kf8 {[%clk 0:01:53]} 25.
Qb7 {[%clk 0:01:38.5]} 25... Qxb7 {[%clk 0:01:50.8]} 26. Nxb7 {[%clk 0:01:37.3]}
26... Ne2+ {[%clk 0:01:49.7]} 27. Kf2 {[%clk 0:01:33.7]} 27... Nxf4 {[%clk
0:01:50.6]} 28. Nxc5 {[%clk 0:01:33.1]} 28... Ke7 {[%clk 0:01:51.2]} 29. Ne4
{[%clk 0:01:21.5]} 29... Nd3+ {[%clk 0:01:50]} 30. Ke3 {[%clk 0:01:17.5]} 30...
Nxe5 {[%clk 0:01:50.9]} 31. Kd4 {[%clk 0:01:15.1]} 31... f6 {[%clk 0:01:43.5]}
32. Kc5 {[%clk 0:01:11.3]} 32... f5 {[%clk 0:01:39.6]} 33. Nc3 {[%clk
0:01:07.5]} 33... g5 {[%clk 0:01:32.9]} 34. a4 {[%clk 0:01:06.6]} 34... Kd7
{[%clk 0:01:22.7]} 35. a5 {[%clk 0:01:05.8]} 35... h5 {[%clk 0:01:19]} 36. a6
{[%clk 0:01:05.4]} 36... h4 {[%clk 0:01:08.3]} 37. Nb5 {[%clk 0:01:05]} 37...
Nc6 {[%clk 0:01:08.1]} 38. Nd6 {[%clk 0:00:37.6]} 38... Nb8 {[%clk 0:01:02.8]}
39. Nf7 {[%clk 0:00:26.3]} 39... Nxa6+ {[%clk 0:00:58.2]} 40. Kd4 {[%clk
0:00:26.5]} 40... g4 {[%clk 0:00:45.6]} 41. hxg4 {[%clk 0:00:17.3]} 41... fxg4
{[%clk 0:00:46.5]} 42. Ne5+ {[%clk 0:00:17.4]} 42... Kd6 {[%clk 0:00:47.1]} 43.
Nxg4 {[%clk 0:00:18]} 43... Nc5 {[%clk 0:00:47.5]} 44. Nh2 {[%clk 0:00:07.8]}
44... e5+ {[%clk 0:00:45]} 45. Ke3 {[%clk 0:00:05.5]} 45... a5 {[%clk
0:00:41.6]} 46. Nf3 {[%clk 0:00:04.6]} 46... a4 {[%clk 0:00:41.7]} 0-1

[Event "Late-Titled-Tuesday-Blitz-June-18-2024"]
[Site "Chess.com"]
[Date "2024.06.18"]
[Round "1"]
[White "KChor05"]
[Black "larsmandreassen"]
[Result "1-0"]
[WhiteElo "2605"]
[BlackElo "2226"]
[TimeControl "180+1"]
[EndTime "14:07:12 PDT"]
[Termination "KChor05 won on time"]

1. e4 {[%clk 0:02:57.5]} 1... d5 {[%clk 0:02:59]} 2. exd5 {[%clk 0:02:57]} 2...
Nf6 {[%clk 0:02:59.5]} 3. c4 {[%clk 0:02:55.9]} 3... e6 {[%clk 0:02:59.3]} 4.
dxe6 {[%clk 0:02:39.6]} 4... Bxe6 {[%clk 0:03:00.2]} 5. Nf3 {[%clk 0:02:36]}
5... Qe7 {[%clk 0:02:59.1]} 6. Qe2 {[%clk 0:02:21.3]} 6... Nc6 {[%clk
0:02:57.6]} 7. Nc3 {[%clk 0:02:11.8]} 7... Nb4 {[%clk 0:02:54.8]} 8. d4 {[%clk
0:01:57.8]} 8... Bf5 {[%clk 0:02:22]} 9. Qxe7+ {[%clk 0:01:51.1]} 9... Bxe7
{[%clk 0:02:22.9]} 10. Kd1 {[%clk 0:01:42.7]} 10... O-O-O {[%clk 0:02:04.5]} 11.
Be3 {[%clk 0:01:25.4]} 11... Ng4 {[%clk 0:01:57.6]} 12. Kd2 {[%clk 0:01:19]}
12... Bf6 {[%clk 0:01:46.3]} 13. h3 {[%clk 0:01:15.4]} 13... Nxe3 {[%clk
0:01:37.7]} 14. fxe3 {[%clk 0:01:14.4]} 14... Rhe8 {[%clk 0:01:34.4]} 15. Rc1
{[%clk 0:01:04.9]} 15... c5 {[%clk 0:01:30.3]} 16. d5 {[%clk 0:01:02.5]} 16...
b5 {[%clk 0:01:06.8]} 17. a3 {[%clk 0:00:51.1]} 17... Bxc3+ {[%clk 0:00:31.1]}
18. Rxc3 {[%clk 0:00:52]} 18... Na2 {[%clk 0:00:13.5]} 19. Rb3 {[%clk
0:00:51.9]} 19... bxc4 {[%clk 0:00:09]} 20. Bxc4 {[%clk 0:00:52.8]} 20... Be4
{[%clk 0:00:07.7]} 21. Ba6+ {[%clk 0:00:47.6]} 21... Kc7 {[%clk 0:00:07.8]} 22.
Rb7+ {[%clk 0:00:46.3]} 22... Kd6 {[%clk 0:00:07.9]} 23. Rxf7 {[%clk 0:00:31.5]}
23... Bxd5 {[%clk 0:00:07.9]} 24. Rxg7 {[%clk 0:00:31.4]} 24... Kc6 {[%clk
0:00:05.8]} 25. Bb7+ {[%clk 0:00:26.9]} 25... Kb6 {[%clk 0:00:05.9]} 26. Bxd5
{[%clk 0:00:25.6]} 26... Rxd5+ {[%clk 0:00:06.8]} 27. Ke2 {[%clk 0:00:23.8]}
27... c4 {[%clk 0:00:06.9]} 28. Ra1 {[%clk 0:00:18.8]} 28... c3 {[%clk
0:00:06.5]} 29. Rxa2 {[%clk 0:00:18.1]} 29... c2 {[%clk 0:00:03.6]} 30. Ra1
{[%clk 0:00:18.4]} 30... Rxe3+ {[%clk 0:00:01.4]} 31. Kxe3 {[%clk 0:00:15]}
31... Rd1 {[%clk 0:00:02.3]} 32. Nd4 {[%clk 0:00:10.6]} 1-0

[Event "Late-Titled-Tuesday-Blitz-June-18-2024"]
[Site "Chess.com"]
[Date "2024.06.18"]
[Round "1"]
[White "jcibarra"]
[Black "DanylaBagrov"]
[Result "1-0"]
[WhiteElo "3005"]
[BlackElo "2511"]
[TimeControl "180+1"]
[EndTime "14:07:13 PDT"]
[Termination "jcibarra won on time"]

1. e4 {[%clk 0:02:53.8]} 1... d6 {[%clk 0:03:00.3]} 2. d4 {[%clk 0:02:51.4]}
2... Nf6 {[%clk 0:03:01]} 3. Nc3 {[%clk 0:02:51.6]} 3... e5 {[%clk 0:03:01.7]}
4. Nf3 {[%clk 0:02:51.4]} 4... Nbd7 {[%clk 0:03:01.6]} 5. Bc4 {[%clk 0:02:51.8]}
5... Be7 {[%clk 0:03:02]} 6. a4 {[%clk 0:02:51.7]} 6... O-O {[%clk 0:03:01.8]}
7. O-O {[%clk 0:02:52.3]} 7... exd4 {[%clk 0:03:02.1]} 8. Qxd4 {[%clk 0:02:49]}
8... Nb6 {[%clk 0:03:00.7]} 9. Bb3 {[%clk 0:02:45.1]} 9... c5 {[%clk 0:02:44]}
10. Qd3 {[%clk 0:02:36.1]} 10... Bg4 {[%clk 0:02:23.6]} 11. a5 {[%clk
0:02:31.3]} 11... Nbd7 {[%clk 0:02:21.1]} 12. h3 {[%clk 0:02:28.9]} 12... Be6
{[%clk 0:02:07.7]} 13. Bxe6 {[%clk 0:02:25]} 13... fxe6 {[%clk 0:02:08.6]} 14.
Qc4 {[%clk 0:02:20.7]} 14... d5 {[%clk 0:01:47.3]} 15. exd5 {[%clk 0:02:19.8]}
15... exd5 {[%clk 0:01:48.2]} 16. Nxd5 {[%clk 0:02:17.4]} 16... Kh8 {[%clk
0:01:46.3]} 17. Nf4 {[%clk 0:02:10]} 17... Qc8 {[%clk 0:01:34.4]} 18. Ne6 {[%clk
0:01:55.9]} 18... Re8 {[%clk 0:01:30.3]} 19. Neg5 {[%clk 0:01:43]} 19... h6
{[%clk 0:01:26]} 20. Nf7+ {[%clk 0:01:43.1]} 20... Kh7 {[%clk 0:01:26.6]} 21.
Qd3+ {[%clk 0:01:43.1]} 21... Kg8 {[%clk 0:01:24.9]} 22. Nxh6+ {[%clk
0:00:53.5]} 22... gxh6 {[%clk 0:01:24.3]} 23. Qg6+ {[%clk 0:00:53.8]} 23... Kh8
{[%clk 0:01:22.7]} 24. Bxh6 {[%clk 0:00:51.2]} 24... Rg8 {[%clk 0:01:16]} 25.
Qf5 {[%clk 0:00:40.8]} 25... Nf8 {[%clk 0:01:11.1]} 26. Qe5 {[%clk 0:00:19]}
26... Qxh3 {[%clk 0:01:07]} 27. Ng5 {[%clk 0:00:19.2]} 27... Qd7 {[%clk
0:00:18]} 28. Rad1 {[%clk 0:00:18.3]} 28... Qe8 {[%clk 0:00:18.1]} 29. Rfe1
{[%clk 0:00:17.3]} 29... Ng6 {[%clk 0:00:16.8]} 30. Qh2 {[%clk 0:00:16.4]} 30...
Ng4 {[%clk 0:00:14.8]} 31. Qh3 {[%clk 0:00:11.7]} 31... Nf4 {[%clk 0:00:04.3]}
32. Qxg4 {[%clk 0:00:10.6]} 32... Qg6 {[%clk 0:00:02.4]} 33. Rxe7 {[%clk
0:00:08.4]} 1-0

[Event "Late-Titled-Tuesday-Blitz-June-18-2024"]
[Site "Chess.com"]
[Date "2024.06.18"]
[Round "1"]
[White "Alex_Sahakyan2006"]
[Black "maracayo"]
[Result "0-1"]
[WhiteElo "2735"]
[BlackElo "2433"]
[TimeControl "180+1"]
[EndTime "14:07:13 PDT"]
[Termination "maracayo won by resignation"]

1. e4 {[%clk 0:03:00.9]} 1... d6 {[%clk 0:02:51.8]} 2. d4 {[%clk 0:02:59.9]}
2... Nf6 {[%clk 0:02:52.3]} 3. Nc3 {[%clk 0:02:59.6]} 3... c6 {[%clk 0:02:53]}
4. Nf3 {[%clk 0:02:55.3]} 4... Qa5 {[%clk 0:02:53.4]} 5. Bd3 {[%clk 0:02:53.7]}
5... e5 {[%clk 0:02:53.2]} 6. O-O {[%clk 0:02:51.7]} 6... Be7 {[%clk 0:02:52.6]}
7. Bd2 {[%clk 0:02:43.2]} 7... Qc7 {[%clk 0:02:51.8]} 8. h3 {[%clk 0:02:41]}
8... O-O {[%clk 0:02:51.4]} 9. dxe5 {[%clk 0:02:35]} 9... dxe5 {[%clk
0:02:52.3]} 10. Bc4 {[%clk 0:02:34.9]} 10... b5 {[%clk 0:02:52]} 11. Bb3 {[%clk
0:02:34.8]} 11... Nbd7 {[%clk 0:02:50.7]} 12. Be3 {[%clk 0:02:24.2]} 12... a6
{[%clk 0:02:48.5]} 13. a3 {[%clk 0:02:21]} 13... Bb7 {[%clk 0:02:47.7]} 14. Qe2
{[%clk 0:02:19.2]} 14... Nc5 {[%clk 0:02:45.1]} 15. Bxc5 {[%clk 0:02:17]} 15...
Bxc5 {[%clk 0:02:44.2]} 16. Rad1 {[%clk 0:02:17.4]} 16... Rad8 {[%clk
0:02:41.5]} 17. Rxd8 {[%clk 0:02:16.8]} 17... Rxd8 {[%clk 0:02:40.9]} 18. Ng5
{[%clk 0:02:15.5]} 18... Rf8 {[%clk 0:02:37.7]} 19. Rd1 {[%clk 0:02:14.4]} 19...
h6 {[%clk 0:02:37.1]} 20. Nf3 {[%clk 0:02:11.8]} 20... Re8 {[%clk 0:02:30.2]}
21. Qd3 {[%clk 0:02:06]} 21... Qb6 {[%clk 0:02:14.9]} 22. Qe2 {[%clk 0:02:01.3]}
22... Bd4 {[%clk 0:02:08.8]} 23. g4 {[%clk 0:01:50.9]} 23... c5 {[%clk
0:01:59.2]} 24. Nd5 {[%clk 0:01:43.8]} 24... Bxd5 {[%clk 0:01:52]} 25. Bxd5
{[%clk 0:01:44.7]} 25... Bxb2 {[%clk 0:01:22.9]} 26. c4 {[%clk 0:01:15.6]} 26...
Bd4 {[%clk 0:01:22.2]} 27. Kg2 {[%clk 0:01:10.8]} 27... Nxd5 {[%clk 0:01:10.6]}
28. cxd5 {[%clk 0:01:07.5]} 28... a5 {[%clk 0:01:02.4]} 29. Nh4 {[%clk
0:00:59.6]} 29... g6 {[%clk 0:00:59.6]} 30. Nf3 {[%clk 0:00:55.7]} 30... b4
{[%clk 0:00:52]} 31. a4 {[%clk 0:00:44.7]} 31... Rd8 {[%clk 0:00:34]} 32. Nd2
{[%clk 0:00:35.5]} 32... Qf6 {[%clk 0:00:33.2]} 33. Nc4 {[%clk 0:00:31.8]} 33...
Qa6 {[%clk 0:00:33]} 34. Rc1 {[%clk 0:00:26.2]} 34... b3 {[%clk 0:00:32.7]} 35.
Qd3 {[%clk 0:00:23.7]} 35... Rb8 {[%clk 0:00:25.1]} 36. Rb1 {[%clk 0:00:16.8]}
36... b2 {[%clk 0:00:23.5]} 37. Kf3 {[%clk 0:00:11.9]} 37... Rb4 {[%clk
0:00:21]} 38. Nxe5 {[%clk 0:00:10.6]} 38... Qf6+ {[%clk 0:00:20.9]} 39. Kg2
{[%clk 0:00:09.5]} 39... Qxf2+ {[%clk 0:00:18.5]} 40. Kh1 {[%clk 0:00:07.4]}
40... Bxe5 {[%clk 0:00:18.7]} 0-1

[Event "Late-Titled-Tuesday-Blitz-June-18-2024"]
[Site "Chess.com"]
[Date "2024.06.18"]
[Round "1"]
[White "Rashad_Zeynalli"]
[Black "Zampronha1971"]
[Result "1-0"]
[WhiteElo "2735"]
[BlackElo "2408"]
[TimeControl "180+1"]
[EndTime "14:07:13 PDT"]
[Termination "Rashad_Zeynalli won on time"]

1. d4 {[%clk 0:03:00.3]} 1... Nf6 {[%clk 0:02:59.2]} 2. Bf4 {[%clk 0:03:00.7]}
2... e6 {[%clk 0:02:58.8]} 3. e3 {[%clk 0:03:01.2]} 3... c5 {[%clk 0:02:59.4]}
4. Nf3 {[%clk 0:03:00.7]} 4... d5 {[%clk 0:03:00]} 5. Nbd2 {[%clk 0:03:00.2]}
5... Nc6 {[%clk 0:03:00.6]} 6. c3 {[%clk 0:03:00.7]} 6... Bd6 {[%clk 0:02:59.9]}
7. Bg3 {[%clk 0:03:01.2]} 7... O-O {[%clk 0:02:59.5]} 8. Bd3 {[%clk 0:03:01.8]}
8... Qe7 {[%clk 0:02:57.5]} 9. Ne5 {[%clk 0:03:01.2]} 9... Nd7 {[%clk
0:02:57.6]} 10. Nxd7 {[%clk 0:03:00.7]} 10... Qxd7 {[%clk 0:02:58.5]} 11. Bxd6
{[%clk 0:02:55.5]} 11... Qxd6 {[%clk 0:02:58.6]} 12. f4 {[%clk 0:02:56.1]} 12...
Ne7 {[%clk 0:02:54.9]} 13. O-O {[%clk 0:02:53.9]} 13... b6 {[%clk 0:02:51.9]}
14. Qh5 {[%clk 0:02:50.1]} 14... Nf5 {[%clk 0:02:42.3]} 15. Rae1 {[%clk
0:02:48.5]} 15... g6 {[%clk 0:02:38.7]} 16. Qh3 {[%clk 0:02:47.5]} 16... cxd4
{[%clk 0:02:33.9]} 17. exd4 {[%clk 0:02:46.5]} 17... Bd7 {[%clk 0:02:30]} 18.
Nf3 {[%clk 0:02:43.5]} 18... f6 {[%clk 0:02:26.4]} 19. Nh4 {[%clk 0:02:31.3]}
19... Nxh4 {[%clk 0:02:23.9]} 20. Qxh4 {[%clk 0:02:32.2]} 20... Rae8 {[%clk
0:02:18.4]} 21. Re3 {[%clk 0:02:29.5]} 21... Re7 {[%clk 0:02:04.3]} 22. Rg3
{[%clk 0:02:25.7]} 22... Rg7 {[%clk 0:02:01.9]} 23. Qh6 {[%clk 0:02:23.5]} 23...
f5 {[%clk 0:01:37.3]} 24. Re3 {[%clk 0:02:12.5]} 24... b5 {[%clk 0:01:30.4]} 25.
a3 {[%clk 0:02:11.1]} 25... a5 {[%clk 0:01:29.7]} 26. Ra1 {[%clk 0:02:09.2]}
26... b4 {[%clk 0:01:22.9]} 27. axb4 {[%clk 0:02:10.1]} 27... axb4 {[%clk
0:01:23.5]} 28. Bf1 {[%clk 0:02:07.4]} 28... bxc3 {[%clk 0:01:21.4]} 29. Rxc3
{[%clk 0:01:53.3]} 29... Qb4 {[%clk 0:01:15.5]} 30. Rc7 {[%clk 0:01:20.5]} 30...
Qxd4+ {[%clk 0:00:42.6]} 31. Kh1 {[%clk 0:01:20.8]} 31... Qxb2 {[%clk
0:00:34.1]} 32. Raa7 {[%clk 0:01:19.6]} 32... Qf2 {[%clk 0:00:33.3]} 33. Ra1
{[%clk 0:01:08.1]} 33... Qd4 {[%clk 0:00:25.6]} 34. Raa7 {[%clk 0:01:03.8]}
34... Qf2 {[%clk 0:00:24.7]} 35. Ra1 {[%clk 0:01:01.1]} 35... Qd4 {[%clk
0:00:23.1]} 36. Rb1 {[%clk 0:00:57.3]} 36... Rd8 {[%clk 0:00:15.8]} 37. Qh4
{[%clk 0:00:53.7]} 37... Re8 {[%clk 0:00:11.1]} 38. Rbb7 {[%clk 0:00:51.6]}
38... Ree7 {[%clk 0:00:07.1]} 39. h3 {[%clk 0:00:43.4]} 39... Rgf7 {[%clk
0:00:04.5]} 40. Bb5 {[%clk 0:00:37]} 40... Bxb5 {[%clk 0:00:02.5]} 41. Rxe7
{[%clk 0:00:34.8]} 41... Qd1+ {[%clk 0:00:02]} 42. Kh2 {[%clk 0:00:34.7]} 1-0

[Event "Late-Titled-Tuesday-Blitz-June-18-2024"]
[Site "Chess.com"]
[Date "2024.06.18"]
[Round "1"]
[White "ChristopherYoo"]
[Black "guillembaches"]
[Result "1-0"]
[WhiteElo "3001"]
[BlackElo "2507"]
[TimeControl "180+1"]
[EndTime "14:07:15 PDT"]
[Termination "ChristopherYoo won on time"]

1. e4 {[%clk 0:03:00.9]} 1... d5 {[%clk 0:03:00]} 2. exd5 {[%clk 0:03:00.5]}
2... Qxd5 {[%clk 0:03:00.9]} 3. Nc3 {[%clk 0:02:58.3]} 3... Qa5 {[%clk 0:03:01]}
4. d4 {[%clk 0:02:57.9]} 4... Nf6 {[%clk 0:03:01.4]} 5. Bd2 {[%clk 0:02:57.4]}
5... Bg4 {[%clk 0:02:59.7]} 6. f3 {[%clk 0:02:54.2]} 6... Bd7 {[%clk 0:02:59.5]}
7. Bc4 {[%clk 0:02:53.1]} 7... Qb6 {[%clk 0:02:59.6]} 8. Nge2 {[%clk 0:02:51.7]}
8... e6 {[%clk 0:02:59.2]} 9. O-O {[%clk 0:02:50.7]} 9... Be7 {[%clk 0:02:59.2]}
10. Be3 {[%clk 0:02:39.5]} 10... O-O {[%clk 0:02:58.9]} 11. Qd2 {[%clk
0:02:37.3]} 11... c5 {[%clk 0:02:56.2]} 12. d5 {[%clk 0:02:23.6]} 12... exd5
{[%clk 0:02:55]} 13. Nxd5 {[%clk 0:02:23.6]} 13... Nxd5 {[%clk 0:02:51.5]} 14.
Bxd5 {[%clk 0:02:24.5]} 14... Nc6 {[%clk 0:02:30.8]} 15. Nc3 {[%clk 0:02:12.5]}
15... Rad8 {[%clk 0:02:23.9]} 16. Bb3 {[%clk 0:02:07.5]} 16... Be6 {[%clk
0:02:13.2]} 17. Qf2 {[%clk 0:02:07.4]} 17... Nd4 {[%clk 0:02:08.9]} 18. Bxe6
{[%clk 0:02:02]} 18... Nxe6 {[%clk 0:01:54.7]} 19. Rab1 {[%clk 0:02:00.4]} 19...
Bf6 {[%clk 0:01:51.1]} 20. Ne4 {[%clk 0:01:59.5]} 20... Bd4 {[%clk 0:01:50.3]}
21. c3 {[%clk 0:01:53]} 21... Bxe3 {[%clk 0:01:49.4]} 22. Qxe3 {[%clk
0:01:53.9]} 22... Rfe8 {[%clk 0:01:45.4]} 23. Qf2 {[%clk 0:01:32]} 23... f5
{[%clk 0:01:26.5]} 24. Ng3 {[%clk 0:01:32]} 24... g6 {[%clk 0:01:26.3]} 25. Rfd1
{[%clk 0:01:31.5]} 25... c4 {[%clk 0:01:22.5]} 26. Qxb6 {[%clk 0:01:29.5]} 26...
axb6 {[%clk 0:01:23.4]} 27. Ne2 {[%clk 0:01:15.8]} 27... Rd3 {[%clk 0:01:14.2]}
28. Kf2 {[%clk 0:01:07.1]} 28... Red8 {[%clk 0:01:09.8]} 29. Ke1 {[%clk
0:01:06.4]} 29... Kf7 {[%clk 0:00:54]} 30. b3 {[%clk 0:01:03.1]} 30... cxb3
{[%clk 0:00:45.1]} 31. axb3 {[%clk 0:01:02.2]} 31... Kf6 {[%clk 0:00:41.1]} 32.
Rxd3 {[%clk 0:01:02.1]} 32... Rxd3 {[%clk 0:00:37.9]} 33. Ra1 {[%clk 0:01:02.7]}
33... Nc5 {[%clk 0:00:34.7]} 34. b4 {[%clk 0:01:02.1]} 34... Ne6 {[%clk
0:00:29.1]} 35. Ra8 {[%clk 0:01:01.7]} 35... Rd7 {[%clk 0:00:23.4]} 36. h4
{[%clk 0:00:58.7]} 36... Re7 {[%clk 0:00:19.8]} 37. Kf2 {[%clk 0:00:57.1]} 37...
Nc7 {[%clk 0:00:17.6]} 38. Rd8 {[%clk 0:00:53.4]} 38... Nb5 {[%clk 0:00:17.4]}
39. c4 {[%clk 0:00:43.1]} 39... Na3 {[%clk 0:00:17.3]} 40. Nf4 {[%clk
0:00:43.1]} 40... Kg7 {[%clk 0:00:15.3]} 41. Nd5 {[%clk 0:00:42]} 41... Re6
{[%clk 0:00:15.2]} 42. Rd7+ {[%clk 0:00:41.5]} 42... Kh6 {[%clk 0:00:15]} 43. g4
{[%clk 0:00:36.5]} 43... fxg4 {[%clk 0:00:14.3]} 44. fxg4 {[%clk 0:00:37.4]}
44... Nxc4 {[%clk 0:00:14.6]} 45. g5+ {[%clk 0:00:37.1]} 45... Kh5 {[%clk
0:00:14.7]} 46. Nf4+ {[%clk 0:00:38]} 46... Kg4 {[%clk 0:00:15.1]} 47. Nxe6
{[%clk 0:00:38.3]} 1-0

[Event "Late-Titled-Tuesday-Blitz-June-18-2024"]
[Site "Chess.com"]
[Date "2024.06.18"]
[Round "1"]
[White "Redzishchess"]
[Black "MarcoRiehle"]
[Result "0-1"]
[WhiteElo "2458"]
[BlackElo "2811"]
[TimeControl "180+1"]
[EndTime "14:07:16 PDT"]
[Termination "MarcoRiehle won by resignation"]

1. d4 {[%clk 0:02:58.9]} 1... d5 {[%clk 0:02:59.6]} 2. c4 {[%clk 0:02:58.2]}
2... e6 {[%clk 0:03:00.1]} 3. Nf3 {[%clk 0:02:58.1]} 3... Nf6 {[%clk 0:02:59.2]}
4. g3 {[%clk 0:02:57.9]} 4... dxc4 {[%clk 0:02:59]} 5. Bg2 {[%clk 0:02:57.8]}
5... c5 {[%clk 0:02:59.6]} 6. Ne5 {[%clk 0:02:41.2]} 6... Qxd4 {[%clk
0:02:55.3]} 7. Qxd4 {[%clk 0:02:21.7]} 7... cxd4 {[%clk 0:02:56.2]} 8. Nxc4
{[%clk 0:02:22.3]} 8... Nd5 {[%clk 0:02:38.7]} 9. O-O {[%clk 0:02:14.4]} 9... b5
{[%clk 0:02:36.5]} 10. Na5 {[%clk 0:02:09.1]} 10... Bc5 {[%clk 0:02:32.9]} 11.
Rd1 {[%clk 0:02:04]} 11... Bb6 {[%clk 0:02:29.6]} 12. Nb3 {[%clk 0:02:01.7]}
12... Nc6 {[%clk 0:02:29.3]} 13. Na3 {[%clk 0:01:52]} 13... a6 {[%clk
0:02:23.7]} 14. Nc2 {[%clk 0:01:51.1]} 14... O-O {[%clk 0:02:18.5]} 15. Ncxd4
{[%clk 0:01:48.1]} 15... Nxd4 {[%clk 0:02:01.5]} 16. Nxd4 {[%clk 0:01:49]} 16...
Bb7 {[%clk 0:02:01.8]} 17. Bf4 {[%clk 0:01:19.6]} 17... Rac8 {[%clk 0:01:54.6]}
18. Nf5 {[%clk 0:00:58.7]} 18... exf5 {[%clk 0:01:42]} 19. Bxd5 {[%clk
0:00:56.7]} 19... Bc6 {[%clk 0:01:33.6]} 20. Rac1 {[%clk 0:00:30.8]} 20... Bxd5
{[%clk 0:01:33.7]} 21. Rxd5 {[%clk 0:00:22.3]} 21... Rxc1+ {[%clk 0:01:31.8]}
22. Bxc1 {[%clk 0:00:23.2]} 22... g6 {[%clk 0:01:30.2]} 23. Rd6 {[%clk
0:00:20.5]} 23... Rb8 {[%clk 0:01:29.4]} 24. Bf4 {[%clk 0:00:17.2]} 24... Rb7
{[%clk 0:01:22.7]} 25. Kg2 {[%clk 0:00:14]} 25... Kf8 {[%clk 0:01:19.6]} 26. Be3
{[%clk 0:00:12.2]} 26... Bxe3 {[%clk 0:01:16.4]} 27. fxe3 {[%clk 0:00:13.1]}
27... Ra7 {[%clk 0:01:17]} 28. Rb6 {[%clk 0:00:12.3]} 28... Ke7 {[%clk
0:01:15.7]} 29. Kf3 {[%clk 0:00:12.7]} 29... Kd7 {[%clk 0:01:16.2]} 30. Kf4
{[%clk 0:00:13.2]} 30... Ke7 {[%clk 0:01:07.5]} 31. e4 {[%clk 0:00:08.5]} 31...
fxe4 {[%clk 0:01:07.5]} 32. Kxe4 {[%clk 0:00:09.4]} 32... f6 {[%clk 0:01:05.7]}
33. Kf4 {[%clk 0:00:08.1]} 33... Kf7 {[%clk 0:01:05.7]} 34. e4 {[%clk
0:00:08.5]} 34... Kg7 {[%clk 0:01:03.3]} 35. h4 {[%clk 0:00:08.4]} 35... Kf7
{[%clk 0:01:02]} 36. g4 {[%clk 0:00:08.8]} 36... h6 {[%clk 0:01:01.1]} 37. g5
{[%clk 0:00:08.9]} 37... fxg5+ {[%clk 0:00:56]} 38. hxg5 {[%clk 0:00:09.8]}
38... h5 {[%clk 0:00:56.9]} 39. e5 {[%clk 0:00:10.1]} 39... Kg7 {[%clk
0:00:50.6]} 40. e6 {[%clk 0:00:08.3]} 40... h4 {[%clk 0:00:48.4]} 41. Rd6 {[%clk
0:00:07.2]} 41... Kf8 {[%clk 0:00:46.6]} 42. Ke5 {[%clk 0:00:06.2]} 42... Ke7
{[%clk 0:00:44.9]} 43. Rd4 {[%clk 0:00:04.5]} 43... Rc7 {[%clk 0:00:45.2]} 44.
Rxh4 {[%clk 0:00:03.1]} 44... Rc5+ {[%clk 0:00:45.5]} 45. Kd4 {[%clk 0:00:03.7]}
45... Rc4+ {[%clk 0:00:45.7]} 0-1

[Event "Late-Titled-Tuesday-Blitz-June-18-2024"]
[Site "Chess.com"]
[Date "2024.06.18"]
[Round "1"]
[White "drragnar1"]
[Black "Lupul_Cenusiu"]
[Result "1-0"]
[WhiteElo "2394"]
[BlackElo "2683"]
[TimeControl "180+1"]
[EndTime "14:07:16 PDT"]
[Termination "drragnar1 won by resignation"]

1. Nf3 {[%clk 0:02:58.3]} 1... Nf6 {[%clk 0:02:59.6]} 2. c4 {[%clk 0:02:58.3]}
2... g6 {[%clk 0:02:58.9]} 3. g3 {[%clk 0:02:58.2]} 3... Bg7 {[%clk 0:02:58.4]}
4. Bg2 {[%clk 0:02:58.6]} 4... c5 {[%clk 0:02:59.1]} 5. O-O {[%clk 0:02:58.8]}
5... O-O {[%clk 0:02:59.7]} 6. Nc3 {[%clk 0:02:59]} 6... Nc6 {[%clk 0:03:00]} 7.
Rb1 {[%clk 0:02:58.8]} 7... d6 {[%clk 0:02:57.3]} 8. d3 {[%clk 0:02:58.3]} 8...
e5 {[%clk 0:02:56.8]} 9. a3 {[%clk 0:02:58.1]} 9... a5 {[%clk 0:02:45]} 10. Ne1
{[%clk 0:02:56.5]} 10... Be6 {[%clk 0:02:44.3]} 11. Nc2 {[%clk 0:02:56.1]} 11...
d5 {[%clk 0:02:41.3]} 12. cxd5 {[%clk 0:02:51.1]} 12... Nxd5 {[%clk 0:02:42.2]}
13. Ne3 {[%clk 0:02:48.4]} 13... Nc7 {[%clk 0:02:31.8]} 14. Ne4 {[%clk
0:02:40.5]} 14... Qe7 {[%clk 0:02:28.7]} 15. Nc4 {[%clk 0:02:24]} 15... Rad8
{[%clk 0:02:13.9]} 16. Qe1 {[%clk 0:02:12.1]} 16... b5 {[%clk 0:02:11.7]} 17.
Nxa5 {[%clk 0:02:07.3]} 17... Nd4 {[%clk 0:02:11.7]} 18. Be3 {[%clk 0:01:56.6]}
18... Nd5 {[%clk 0:01:51.7]} 19. Bxd4 {[%clk 0:01:54.5]} 19... exd4 {[%clk
0:01:45.2]} 20. Nc6 {[%clk 0:01:54.2]} 20... Qc7 {[%clk 0:01:44]} 21. Nxd8
{[%clk 0:01:53]} 21... Rxd8 {[%clk 0:01:44.9]} 22. Rc1 {[%clk 0:01:51.9]} 22...
c4 {[%clk 0:01:41.8]} 23. Ng5 {[%clk 0:01:44.1]} 23... Bf5 {[%clk 0:01:38.4]}
24. dxc4 {[%clk 0:01:37.3]} 24... bxc4 {[%clk 0:01:38.5]} 25. Bxd5 {[%clk
0:01:07.3]} 25... Rxd5 {[%clk 0:01:37.2]} 26. Qb4 {[%clk 0:01:06.9]} 26... Rc5
{[%clk 0:01:34.3]} 27. Nf3 {[%clk 0:01:02.1]} 27... Be4 {[%clk 0:01:14.2]} 28.
Rfd1 {[%clk 0:00:59.7]} 28... d3 {[%clk 0:01:14.5]} 29. Rxd3 {[%clk 0:00:46.3]}
29... Bxd3 {[%clk 0:01:00.4]} 30. exd3 {[%clk 0:00:47.2]} 30... c3 {[%clk
0:00:39.4]} 31. bxc3 {[%clk 0:00:48.1]} 31... Bxc3 {[%clk 0:00:35.7]} 32. Qf4
{[%clk 0:00:31.2]} 32... Qc6 {[%clk 0:00:21.1]} 33. Ng5 {[%clk 0:00:21.5]} 33...
f6 {[%clk 0:00:21.1]} 34. Ne4 {[%clk 0:00:20.3]} 34... Be5 {[%clk 0:00:04.6]}
35. Rxc5 {[%clk 0:00:16.8]} 1-0